bitfinex-derivatives/quotes_BTCF0:USTF0_20251204
["timestamp","ask_amount","ask_price","bid_price","bid_amount"]
[1764815245525,0.23548,93922.0,93921.0,0.2145763]
[1764815248836,0.03,93922.0,93921.0,0.2145763]
[1764815249234,0.13576,93922.0,93921.0,0.2145763]
[1764815249535,0.23548,93922.0,93921.0,0.2145763]
[1764815251827,0.2161263,93921.0,93920.0,0.09464048]
[1764815252028,0.20548,93919.0,93918.0,0.20864708]
[1764815252240,0.23548,93919.0,93918.0,0.20864708]
[1764815252431,0.23548,93919.0,93918.0,0.09464048]
[1764815252627,0.23548,93919.0,93916.0,0.00015978]
[1764815252628,0.0106467,93918.0,93917.0,0.0106468]
[1764815252941,0.2461267,93918.0,93917.0,0.1140068]
[1764815253726,0.13576,93918.0,93917.0,0.2145768]
[1764815254130,0.22756,93918.0,93917.0,0.2145768]
[1764815255333,0.22756,93918.0,93917.0,0.1140068]
[1764815255631,0.22756,93918.0,93917.0,0.0106468]
[1764815255836,0.22756,93918.0,93917.0,0.2004468]
[1764815257143,0.22756,93918.0,93917.0,0.1093068]
[1764815257440,0.22756,93918.0,93917.0,0.0106468]
[1764815257828,0.22756,93918.0,93917.0,0.1093068]
[1764815258034,0.22756,93918.0,93917.0,0.2004468]
[1764815264849,0.03,93918.0,93917.0,0.2004468]
[1764815265244,0.2165,93918.0,93917.0,0.2004468]
[1764815265445,0.2165,93918.0,93917.0,0.1093068]
[1764815265648,0.2165,93918.0,93917.0,0.2030568]
[1764815269739,0.2165,93918.0,93917.0,0.19241]
[1764815269943,0.1971468,93917.0,93916.0,0.00015978]
[1764815270146,0.1971468,93917.0,93916.0,0.25730544]
[1764815270147,0.2271468,93917.0,93916.0,0.25730544]
[1764815270446,0.2165,93917.0,93916.0,0.18140978]
[1764815270849,0.2165,93917.0,93916.0,0.00015978]
[1764815272942,0.2165,93917.0,93916.0,0.19205668]
[1764815275858,0.2165,93917.0,93916.0,0.18140978]
[1764815278262,0.2165,93917.0,93916.0,0.00015978]
[1764815278460,0.2165,93917.0,93916.0,0.19205668]
[1764815279350,0.03,93917.0,93916.0,0.19205668]
[1764815281962,0.12299,93917.0,93916.0,0.19205668]
[1764815282655,0.03,93917.0,93916.0,0.19205668]
[1764815283055,0.12299,93917.0,93916.0,0.19205668]
[1764815283260,0.2165,93917.0,93916.0,0.27605026]
[1764815283453,0.2165,93917.0,93916.0,0.18140978]
[1764815283657,0.2165,93917.0,93916.0,0.18230026]
[1764815283856,0.2165,93917.0,93916.0,0.08765978]
[1764815284248,0.2165,93917.0,93916.0,0.17334978]
[1764815285056,0.2165,93917.0,93916.0,0.00015978]
[1764815285659,0.2165,93917.0,93916.0,0.09228978]
[1764815287464,0.2165,93917.0,93916.0,0.17797978]
[1764815288364,0.2355,93917.0,93916.0,0.17797978]
[1764815292064,0.2405,93917.0,93916.0,0.17797978]
[1764815299678,0.2405,93917.0,93916.0,0.00015978]
[1764815299876,0.2405,93917.0,93916.0,0.09228978]
[1764815300076,0.2405,93917.0,93916.0,0.17797978]
[1764815300576,0.2405,93917.0,93916.0,0.18862668]
[1764815301969,0.054,93917.0,93916.0,0.18862668]
[1764815302174,0.054,93917.0,93916.0,0.28326716]
[1764815302472,0.054,93917.0,93916.0,0.18862668]
[1764815303577,0.14003,93917.0,93916.0,0.18862668]
[1764815303879,0.22741,93917.0,93916.0,0.18862668]
[1764815304076,0.22741,93917.0,93916.0,0.2729125]
[1764815305770,0.2380568,93917.0,93916.0,0.2729125]
[1764815308377,0.2380568,93917.0,93916.0,0.0950925]
[1764815308680,0.2380568,93917.0,93886.0,0.13294541]
[1764815308681,0.1840602,93887.0,93886.0,0.13294541]
[1764815308975,0.1840602,93887.0,93868.0,0.01734089]
[1764815308976,0.17341,93869.0,93868.0,0.01734089]
[1764815309181,0.17341,93860.0,93859.0,0.17782]
[1764815309383,0.20341,93860.0,93859.0,0.17782]
[1764815309680,0.20341,93860.0,93859.0,0.1884734]
[1764815310082,0.20341,93860.0,93859.0,0.20498678]
[1764815310479,0.22641,93860.0,93859.0,0.20498678]
[1764815310784,0.053,93860.0,93859.0,0.20498678]
[1764815310985,0.034,93860.0,93859.0,0.20498678]
[1764815311178,0.053,93860.0,93859.0,0.20498678]
[1764815312187,0.22641,93860.0,93859.0,0.20498678]
[1764815312578,0.20741,93860.0,93859.0,0.20498678]
[1764815312778,0.22641,93860.0,93859.0,0.20498678]
[1764815313484,0.22241,93860.0,93859.0,0.20498678]
[1764815313683,0.20741,93860.0,93859.0,0.20498678]
[1764815313986,0.22641,93860.0,93859.0,0.20498678]
[1764815314394,0.22641,93860.0,93859.0,0.01651338]
[1764815314589,0.17844,93851.0,93850.0,0.37570303]
[1764815314788,0.20844,93851.0,93850.0,0.18865355]
[1764815315082,0.20844,93851.0,93850.0,0.20494545]
[1764815315286,0.03,93851.0,93850.0,0.20494545]
[1764815315686,0.019,93860.0,93859.0,0.0106534]
[1764815315888,0.03,93860.0,93859.0,0.1883734]
[1764815316982,0.034,93860.0,93859.0,0.1883734]
[1764815317185,0.053,93860.0,93859.0,0.1883734]
[1764815317391,0.13846,93860.0,93859.0,0.1883734]
[1764815317589,0.034,93860.0,93859.0,0.1883734]
[1764815317792,0.048,93860.0,93859.0,0.1883734]
[1764815318492,0.044,93860.0,93859.0,0.1883734]
[1764815318994,0.22244,93860.0,93859.0,0.1883734]
[1764815319483,0.22344,93860.0,93859.0,0.1883734]
[1764815319892,0.20844,93860.0,93859.0,0.1883734]
[1764815320189,0.22944,93860.0,93859.0,0.1883734]
[1764815321579,0.23044,93860.0,93859.0,0.1883734]
[1764815322780,0.23044,93860.0,93859.0,0.07914]
[1764815323285,0.18736,93859.0,93858.0,0.1096834]
[1764815323485,0.21736,93859.0,93858.0,0.2028534]
[1764815323686,0.21736,93859.0,93858.0,0.0106534]
[1764815324693,0.22036,93859.0,93858.0,0.0106534]
[1764815324890,0.033,93859.0,93854.0,0.0106538]
[1764815325096,0.033,93859.0,93850.0,0.10134475]
[1764815325097,0.18736,93858.0,93857.0,0.0106536]
[1764815325295,0.22736,93858.0,93857.0,0.0106536]
[1764815326291,0.25036,93858.0,93857.0,0.0106536]
[1764815326495,0.25036,93858.0,93857.0,0.1096836]
[1764815326797,0.25036,93858.0,93857.0,0.09903]
[1764815326994,0.25036,93858.0,93850.0,0.10134475]
[1764815326995,0.18736,93851.0,93850.0,0.01657105]
[1764815327196,0.21736,93851.0,93850.0,0.01657105]
[1764815327594,0.18736,93847.0,93846.0,0.0002664]
[1764815327893,0.2280147,93847.0,93846.0,0.0002664]
[1764815328899,0.22812694,93847.0,93846.0,0.0002664]
[1764815329098,0.22912694,93847.0,93846.0,0.0002664]
[1764815329298,0.22912694,93847.0,93846.0,0.01616685]
[1764815329603,0.24412694,93847.0,93846.0,0.01616685]
[1764815331500,0.23347224,93847.0,93846.0,0.20836685]
[1764815332697,0.23347224,93847.0,93846.0,0.01616685]
[1764815334704,0.23347224,93847.0,93846.0,0.11519685]
[1764815334906,0.23347224,93847.0,93846.0,0.01616685]
[1764815338111,0.23347224,93847.0,93837.0,0.00015978]
[1764815338112,0.1980158,93838.0,93837.0,0.00015978]
[1764815338412,0.2280158,93838.0,93837.0,0.01604076]
[1764815338604,0.2280158,93838.0,93837.0,0.00015978]
[1764815339308,0.2410158,93838.0,93837.0,0.11536643]
[1764815339509,0.2410158,93838.0,93837.0,0.19235978]
[1764815339710,0.2410158,93838.0,93837.0,0.00015978]
[1764815340807,0.2410158,93838.0,93837.0,0.20879686]
[1764815342500,0.043,93838.0,93837.0,0.21945276]
[1764815343314,0.13847,93838.0,93837.0,0.21945276]
[1764815344315,0.043,93838.0,93837.0,0.21945276]
[1764815345217,0.22634,93838.0,93837.0,0.21945276]
[1764815345714,0.22634,93838.0,93837.0,0.20879686]
[1764815346809,0.22634,93838.0,93837.0,0.11562686]
[1764815347015,0.22634,93838.0,93837.0,0.19731686]
[1764815347611,0.22634,93838.0,93837.0,0.10942686]
[1764815347912,0.22634,93838.0,93837.0,0.01659686]
[1764815348408,0.22634,93838.0,93837.0,0.19731686]
[1764815350918,0.043,93838.0,93837.0,0.19731686]
[1764815351506,0.13677,93838.0,93837.0,0.19731686]
[1764815351712,0.22634,93838.0,93837.0,0.19731686]
[1764815358526,0.23234,93838.0,93837.0,0.19731686]
[1764815359223,0.23634,93838.0,93837.0,0.19731686]
[1764815359425,0.21734,93838.0,93837.0,0.19731686]
[1764815359624,0.23634,93838.0,93837.0,0.19731686]
[1764815362727,0.23634,93838.0,93837.0,0.10942686]
[1764815364741,0.23634,93838.0,93837.0,0.19731686]
[1764815365125,0.14677,93838.0,93837.0,0.19731686]
[1764815365431,0.053,93838.0,93837.0,0.19731686]
[1764815369034,0.053,93838.0,93837.0,0.15421686]
[1764815369930,0.0294706,93838.0,93837.0,0.17056488]
[1764815370130,0.1232406,93838.0,93837.0,0.17056488]
[1764815370339,0.1232406,93838.0,93837.0,0.2656536]
[1764815370340,0.2128106,93838.0,93837.0,0.2656536]
[1764815370630,0.2128106,93838.0,93837.0,0.17056488]
[1764815371026,0.2128106,93838.0,93837.0,0.08267488]
[1764815371432,0.2128106,93838.0,93837.0,0.17056488]
[1764815373831,0.2128106,93838.0,93837.0,0.08267488]
[1764815374338,0.2128106,93838.0,93837.0,0.16459488]
[1764815377742,0.2128106,93838.0,93837.0,0.01634802]
[1764815377933,0.1860359,93837.0,93836.0,0.076083]
[1764815378242,0.2160359,93837.0,93836.0,0.01669879]
[1764815378442,0.1860368,93829.0,93828.0,0.16805978]
[1764815378644,0.2160368,93829.0,93828.0,0.16805978]
[1764815379941,0.2350368,93829.0,93828.0,0.16805978]
[1764815380144,0.2350368,93829.0,93828.0,0.18503461]
[1764815380333,0.22438,93829.0,93828.0,0.18503461]
[1764815380535,0.049,93829.0,93828.0,0.33067333]
[1764815380936,0.052,93829.0,93828.0,0.33067333]
[1764815381237,0.052,93829.0,93828.0,0.23558461]
[1764815381744,0.034,93829.0,93828.0,0.23558461]
[1764815382041,0.053,93829.0,93828.0,0.23558461]
[1764815383648,0.053,93829.0,93828.0,0.23258461]
[1764815385644,0.21997,93829.0,93828.0,0.23258461]
[1764815385943,0.138,93829.0,93828.0,0.23258461]
[1764815386144,0.053,93829.0,93828.0,0.23258461]
[1764815391341,0.21997,93829.0,93828.0,0.10011461]
[1764815391643,0.21997,93829.0,93828.0,0.23409461]
[1764815394546,0.21997,93829.0,93828.0,0.18354461]
[1764815398243,0.21997,93829.0,93828.0,0.01697483]
[1764815398443,0.21997,93829.0,93828.0,0.16723]
[1764815398852,0.053,93829.0,93828.0,0.21778]
[1764815399361,0.053,93829.0,93828.0,0.23458195]
[1764815399857,0.053,93829.0,93828.0,0.32969039]
[1764815400261,0.053,93829.0,93828.0,0.23458195]
[1764815401951,0.0106539,93855.0,93846.0,0.2238348]
[1764815402161,0.19724202,93847.0,93846.0,0.16723]
[1764815402360,0.16697,93843.0,93842.0,0.09508263]
[1764815402669,0.16697,93838.0,93837.0,0.1778859]
[1764815402859,0.19697,93838.0,93837.0,0.1778859]
[1764815403055,0.19697,93838.0,93837.0,0.16723]
[1764815403256,0.16697,93833.0,93832.0,0.17888263]
[1764815403462,0.16834,93826.0,93825.0,0.26653263]
[1764815403760,0.19834,93826.0,93825.0,0.26653263]
[1764815404066,0.19834,93826.0,93825.0,0.18860999]
[1764815405056,0.21734,93826.0,93825.0,0.18960999]
[1764815405258,0.049,93826.0,93825.0,0.28469262]
[1764815405457,0.049,93826.0,93825.0,0.18960999]
[1764815405961,0.052,93826.0,93825.0,0.18960999]
[1764815406553,0.045,93826.0,93825.0,0.32268185]
[1764815406757,0.046,93826.0,93825.0,0.32268185]
[1764815407163,0.031,93826.0,93825.0,0.32068185]
[1764815407465,0.031,93826.0,93825.0,0.32168185]
[1764815407466,0.039,93826.0,93825.0,0.32168185]
[1764815407867,0.035,93826.0,93825.0,0.32168185]
[1764815408258,0.00027202,93847.0,93835.0,0.2026561]
[1764815408566,0.05,93846.0,93845.0,0.182105]
[1764815408768,0.00027202,93847.0,93846.0,0.17145]
[1764815408955,0.03027202,93847.0,93846.0,0.26655215]
[1764815409561,0.03027202,93847.0,93846.0,0.17145]
[1764815409957,0.19861202,93847.0,93846.0,0.17145]
[1764815410567,0.21861202,93847.0,93846.0,0.17345]
[1764815411163,0.13787202,93847.0,93846.0,0.17345]
[1764815411959,0.21861202,93847.0,93846.0,0.17345]
[1764815422082,0.22926672,93847.0,93846.0,0.002]
[1764815424478,0.22896672,93847.0,93846.0,0.002]
[1764815425276,0.0106554,93841.0,93840.0,0.07591827]
[1764815425474,0.1789963,93833.0,93832.0,0.07591827]
[1764815425678,0.20896832,93833.0,93832.0,0.07591827]
[1764815426678,0.22096832,93833.0,93832.0,0.07691827]
[1764815427386,0.22096832,93833.0,93832.0,0.001]
[1764815428972,0.22496832,93833.0,93832.0,0.001]
[1764815429173,0.22496832,93833.0,93825.0,0.01715999]
[1764815429174,0.1789967,93830.0,93828.0,0.07591827]
[1764815429389,0.16834,93826.0,93825.0,0.01715999]
[1764815429576,0.16834,93824.0,93823.0,0.07591827]
[1764815429770,0.19831202,93824.0,93823.0,0.16270827]
[1764815430270,0.19831202,93824.0,93823.0,0.18035358]
[1764815430471,0.19831202,93824.0,93823.0,0.10443531]
[1764815431077,0.21131202,93824.0,93823.0,0.10543531]
[1764815431380,0.21131202,93824.0,93823.0,0.01864531]
[1764815432277,0.21431202,93824.0,93823.0,0.01864531]
[1764815439483,0.21431202,93824.0,93823.0,0.17847531]
[1764815439989,0.04597202,93824.0,93823.0,0.17847531]
[1764815441087,0.12001202,93824.0,93823.0,0.17847531]
[1764815441486,0.19249202,93824.0,93823.0,0.17847531]
[1764815442183,0.12001202,93824.0,93823.0,0.17847531]
[1764815442388,0.04597202,93824.0,93823.0,0.17847531]
[1764815445984,0.19249202,93824.0,93823.0,0.17847531]
[1764815449395,0.04597202,93824.0,93823.0,0.17847531]
[1764815449985,0.19249202,93824.0,93823.0,0.17847531]
[1764815451389,0.04597202,93824.0,93823.0,0.17847531]
[1764815452194,0.19249202,93824.0,93823.0,0.17847531]
[1764815452502,0.19249202,93824.0,93823.0,0.27357746]
[1764815452798,0.19249202,93824.0,93823.0,0.17847531]
[1764815454002,0.19249202,93824.0,93823.0,0.27357746]
[1764815454202,0.19249202,93824.0,93823.0,0.17847531]
[1764815454404,0.19249202,93824.0,93823.0,0.27357746]
[1764815454905,0.19249202,93824.0,93823.0,0.17847531]
[1764815455106,0.19249202,93824.0,93823.0,0.01864531]
[1764815455292,0.1799893,93807.0,93798.0,0.13316631]
[1764815455497,0.1571802,93799.0,93798.0,0.13316631]
[1764815455703,0.14652,93789.0,93788.0,0.4174]
[1764815456002,0.14652,93789.0,93788.0,0.43444709]
[1764815456003,0.18715332,93789.0,93788.0,0.43444709]
[1764815456195,0.18715332,93789.0,93788.0,0.17164709]
[1764815456392,0.18727329,93789.0,93788.0,0.17164709]
[1764815457507,0.18727329,93789.0,93788.0,0.01904709]
[1764815458197,0.18827329,93789.0,93788.0,0.02404709]
[1764815458793,0.18727329,93789.0,93788.0,0.02004709]
[1764815459192,0.18727329,93789.0,93788.0,0.01804709]
[1764815459391,0.18727329,93789.0,93788.0,0.01904709]
[1764815459796,0.18727329,93789.0,93788.0,0.09668709]
[1764815460005,0.18727329,93789.0,93788.0,0.09568709]
[1764815460192,0.18727329,93789.0,93788.0,0.01904709]
[1764815462007,0.18727329,93789.0,93788.0,0.17364709]
[1764815462318,0.17661199,93789.0,93788.0,0.17364709]
[1764815465011,0.18104199,93789.0,93788.0,0.17364709]
[1764815465302,0.19170329,93789.0,93788.0,0.17364709]
[1764815465701,0.19170329,93789.0,93788.0,0.01904709]
[1764815466800,0.19170329,93789.0,93788.0,0.01157539]
[1764815467002,0.19170329,93789.0,93788.0,0.002]
[1764815467202,0.19170329,93789.0,93788.0,0.01952725]
[1764815468401,0.1616123,93780.0,93779.0,0.00015987]
[1764815468609,0.19158432,93780.0,93779.0,0.17282312]
[1764815468912,0.18092202,93780.0,93779.0,0.15555987]
[1764815469504,0.18092202,93780.0,93779.0,0.15655987]
[1764815469819,0.18092202,93780.0,93779.0,0.1740112]
[1764815470014,0.18092202,93780.0,93779.0,0.1760112]
[1764815471614,0.1616138,93767.0,93766.0,0.00026662]
[1764815471818,0.1616138,93767.0,93752.0,0.00011969]
[1764815471819,0.1616148,93758.0,93752.0,0.00011969]
[1764815472114,0.1616154,93753.0,93752.0,0.01770598]
[1764815472323,0.15095,93729.0,93728.0,0.19902]
[1764815472614,0.18095,93729.0,93728.0,0.21657868]
[1764815473415,0.18103555,93729.0,93728.0,0.21657868]
[1764815473719,0.18103555,93729.0,93728.0,0.21857868]
[1764815473912,0.03008555,93729.0,93728.0,0.21857868]
[1764815474314,0.18103555,93729.0,93728.0,0.01955868]
[1764815474516,0.18103555,93729.0,93728.0,0.09789868]
[1764815474721,0.18103555,93729.0,93728.0,0.09889868]
[1764815475018,0.03008555,93729.0,93728.0,0.17595868]
[1764815478818,0.00015996,93738.0,93737.0,0.1660672]
[1764815479007,0.04015996,93738.0,93737.0,0.1660672]
[1764815479821,0.0402813,93738.0,93737.0,0.1660672]
[1764815480222,0.161614,93766.0,93765.0,0.07834]
[1764815480416,0.191614,93766.0,93765.0,0.1554]
[1764815481021,0.191614,93766.0,93765.0,0.07834]
[1764815481617,0.195614,93766.0,93765.0,0.07834]
[1764815482029,0.15095,93757.0,93756.0,0.41222622]
[1764815482216,0.191615,93757.0,93756.0,0.00015996]
[1764815482923,0.18095,93757.0,93756.0,0.15555996]
[1764815483529,0.191615,93757.0,93756.0,0.15555996]
[1764815484123,0.209615,93757.0,93756.0,0.00215996]
[1764815485021,0.213615,93757.0,93756.0,0.00215996]
[1764815485419,0.195615,93757.0,93756.0,0.00015996]
[1764815485620,0.213615,93757.0,93756.0,0.00215996]
[1764815487223,0.15095,93736.0,93735.0,0.07834]
[1764815487524,0.18095,93736.0,93735.0,0.0890075]
[1764815487924,0.03,93736.0,93735.0,0.2096875]
[1764815488232,0.15095,93729.0,93724.0,0.07545717]
[1764815488427,0.15095,93729.0,93699.0,0.04362]
[1764815488428,0.07316,93704.0,93699.0,0.11907717]
[1764815488626,0.15095,93700.0,93699.0,0.17301666]
[1764815488822,0.18095,93700.0,93699.0,0.21663666]
[1764815489134,0.03,93700.0,93699.0,0.21663666]
[1764815489721,0.031,93700.0,93699.0,0.22363666]
[1764815490117,0.05,93710.0,93709.0,0.1554]
[1764815490320,0.00016005,93711.0,93710.0,0.19902]
[1764815490535,0.03016005,93711.0,93710.0,0.19902]
[1764815491730,0.03116005,93711.0,93710.0,0.20502]
[1764815492238,0.10432005,93711.0,93710.0,0.20502]
[1764815492534,0.03116005,93711.0,93710.0,0.20502]
[1764815494733,0.18338005,93711.0,93710.0,0.1614]
[1764815495129,0.18338005,93711.0,93710.0,0.006]
[1764815497041,0.18338005,93711.0,93710.0,0.082]
[1764815497545,0.18338005,93711.0,93710.0,0.006]
[1764815500732,0.18338005,93711.0,93710.0,0.16052]
[1764815501330,0.03116005,93711.0,93710.0,0.16052]
[1764815501732,0.15493,93700.0,93699.0,0.01761666]
[1764815501931,0.15493,93700.0,93686.0,0.00026685]
[1764815501932,0.1656021,93694.0,93686.0,0.00026685]
[1764815502136,0.1956021,93694.0,93686.0,0.00026685]
[1764815502643,0.1956021,93694.0,93693.0,0.1735517]
[1764815503842,0.1956021,93694.0,93693.0,0.0175117]
[1764815504029,0.0106749,93670.0,93659.0,0.010676]
[1764815504235,0.0106749,93670.0,93669.0,0.15604]
[1764815504236,0.1956049,93670.0,93669.0,0.15604]
[1764815505135,0.19572152,93670.0,93669.0,0.15604]
[1764815505337,0.15493,93664.0,93663.0,0.01722219]
[1764815505539,0.07496,93657.0,93656.0,0.1667164]
[1764815505744,0.18493,93657.0,93656.0,0.17374069]
[1764815506747,0.03,93657.0,93656.0,0.17374069]
[1764815507446,0.033,93657.0,93656.0,0.17374069]
[1764815507842,0.051,93657.0,93656.0,0.17574069]
[1764815508050,0.05,93657.0,93656.0,0.17574069]
[1764815508238,0.032,93657.0,93656.0,0.17374069]
[1764815508443,0.037,93657.0,93656.0,0.17474069]
[1764815509548,0.19193,93657.0,93656.0,0.01870069]
[1764815509843,0.15493,93647.0,93633.0,7.825e-05]
[1764815510050,0.18493,93647.0,93633.0,7.825e-05]
[1764815510246,0.18493,93647.0,93646.0,0.01814769]
[1764815510549,0.1956075,93647.0,93646.0,0.01814769]
[1764815511045,0.10896,93647.0,93646.0,0.17518769]
[1764815511750,0.18893,93647.0,93646.0,0.17518769]
[1764815512936,0.18893,93647.0,93646.0,0.09666769]
[1764815513147,0.18893,93647.0,93646.0,0.01914769]
[1764815516748,0.18893,93647.0,93646.0,0.09666769]
[1764815517456,0.18893,93647.0,93646.0,0.01914769]
[1764815517855,0.18893,93647.0,93646.0,0.09666769]
[1764815518248,0.18893,93647.0,93646.0,0.17518769]
[1764815519760,0.00011662,93670.0,93669.0,0.15604]
[1764815519953,0.04,93680.0,93679.0,0.15604]
[1764815520153,0.04,93680.0,93653.0,0.24600126]
[1764815520154,0.15493,93661.0,93660.0,0.15604]
[1764815520355,0.15493,93661.0,93658.0,0.0106761]
[1764815520356,0.15493,93659.0,93658.0,0.0106761]
[1764815520555,0.18493,93659.0,93658.0,0.1667161]
[1764815520758,0.00359627,93659.0,93658.0,0.25237234]
[1764815520967,0.00016014,93668.0,93667.0,0.1667152]
[1764815521260,0.03021395,93668.0,93667.0,0.1667152]
[1764815521462,0.18514395,93668.0,93667.0,0.1667152]
[1764815521858,0.18514395,93668.0,93667.0,0.15604]
[1764815522160,0.15493,93662.0,93661.0,0.1667158]
[1764815522461,0.03,93662.0,93661.0,0.1667158]
[1764815523655,0.033,93662.0,93661.0,0.1667158]
[1764815523857,0.051,93662.0,93661.0,0.1687158]
[1764815524358,0.05,93662.0,93661.0,0.1687158]
[1764815525159,0.047,93662.0,93661.0,0.1687158]
[1764815525360,0.05,93662.0,93661.0,0.1687158]
[1764815525758,0.00021395,93668.0,93667.0,0.1683352]
[1764815525953,0.00021395,93668.0,93661.0,0.11944325]
[1764815525954,0.20589,93700.0,93699.0,0.0786]
[1764815526171,0.03,93700.0,93699.0,0.15766]
[1764815527470,0.04641,93750.0,93729.0,0.15766]
[1764815527765,0.08641,93742.0,93730.0,0.17631283]
[1764815528170,0.15999,93731.0,93730.0,0.34464083]
[1764815528474,0.03,93731.0,93730.0,0.168328]
[1764815528659,0.2364,93731.0,93730.0,0.15766]
[1764815528858,0.2364,93731.0,93730.0,0.24238859]
[1764815529064,0.18999,93731.0,93730.0,0.24238859]
[1764815529263,0.10652,93731.0,93730.0,0.24238859]
[1764815529473,0.03,93731.0,93730.0,0.24238859]
[1764815529676,0.2364,93731.0,93730.0,0.15766]
[1764815530171,0.15999,93730.0,93729.0,0.001]
[1764815530367,0.15999,93726.0,93725.0,0.0106685]
[1764815530669,0.18999,93726.0,93725.0,0.0786]
[1764815530862,0.15999,93722.0,93721.0,0.00016005]
[1764815531065,0.18999,93722.0,93721.0,0.00016005]
[1764815533269,0.18999,93722.0,93721.0,0.01016005]
[1764815546475,0.18999,93722.0,93721.0,0.00016005]
[1764815547484,0.19399,93722.0,93721.0,0.00016005]
[1764815550390,0.19399,93722.0,93721.0,0.15782005]
[1764815550998,0.034,93722.0,93721.0,0.15782005]
[1764815551300,0.20999,93732.0,93731.0,0.0106679]
[1764815551588,0.18999,93732.0,93731.0,0.0106679]
[1764815551890,0.18999,93732.0,93731.0,0.08686956]
[1764815552194,0.15999,93728.0,93727.0,0.0892684]
[1764815552396,0.18999,93728.0,93727.0,0.0106684]
[1764815552588,0.04641,93726.0,93723.0,0.1683288]
[1764815552794,0.15999,93724.0,93723.0,0.1683288]
[1764815552996,0.18999,93724.0,93723.0,0.1683288]
[1764815555195,0.18999,93724.0,93723.0,0.1793288]
[1764815556293,0.03,93724.0,93723.0,0.1793288]
[1764815556691,0.08088005,93740.0,93739.0,0.16224]
[1764815556994,0.11088005,93740.0,93739.0,0.172907]
[1764815557298,0.19219005,93740.0,93739.0,0.172907]
[1764815557486,0.11088005,93740.0,93739.0,0.172907]
[1764815558191,0.19219005,93740.0,93739.0,0.19086318]
[1764815558391,0.19519005,93740.0,93739.0,0.19086318]
[1764815559196,0.03316005,93740.0,93739.0,0.19086318]
[1764815560400,0.03016005,93740.0,93739.0,0.19086318]
[1764815560706,0.19386005,93740.0,93739.0,0.01895618]
[1764815560996,0.19386005,93740.0,93739.0,0.10169618]
[1764815561401,0.19386005,93740.0,93739.0,0.17845618]
[1764815562100,0.19386005,93740.0,93739.0,0.19145618]
[1764815566799,0.19386005,93740.0,93739.0,0.11469618]
[1764815566995,0.19386005,93740.0,93739.0,0.19145618]
[1764815567797,0.19386005,93740.0,93739.0,0.03195618]
[1764815572404,0.1743689,93722.0,93716.0,0.075982]
[1764815572608,0.2043689,93722.0,93716.0,0.075982]
[1764815573112,0.2043689,93722.0,93721.0,0.01786786]
[1764815574811,0.2043689,93722.0,93721.0,0.02403916]
[1764815575003,0.2043689,93722.0,93721.0,0.009]
[1764815576210,0.2043689,93722.0,93721.0,0.02735521]
[1764815581323,0.1937,93722.0,93721.0,0.18685521]
[1764815581522,0.03,93722.0,93721.0,0.19752431]
[1764815581731,0.1937,93722.0,93721.0,0.19752431]
[1764815582520,0.1937,93722.0,93721.0,0.18685521]
[1764815583818,0.1937,93722.0,93721.0,0.11009521]
[1764815584618,0.1937,93722.0,93721.0,0.18621521]
[1764815585115,0.03,93722.0,93721.0,0.26219721]
[1764815585319,0.03,93722.0,93721.0,0.18621521]
[1764815585727,0.00016005,93740.0,93739.0,0.15752]
[1764815585914,0.03016005,93740.0,93739.0,0.168187]
[1764815586114,0.00663065,93740.0,93739.0,0.168187]
[1764815587320,0.00663065,93740.0,93739.0,0.24405606]
[1764815587916,0.00663065,93740.0,93739.0,0.175187]
[1764815589424,0.15803065,93740.0,93739.0,0.0884]
[1764815589627,0.15803065,93740.0,93739.0,0.16452]
[1764815589829,0.00663065,93740.0,93739.0,0.16452]
[1764815590025,0.00663065,93740.0,93739.0,0.16552]
[1764815590615,0.01263065,93740.0,93739.0,0.15852]
[1764815591224,0.00663065,93740.0,93739.0,0.16552]
[1764815591524,0.00663065,93740.0,93739.0,0.16452]
[1764815591724,0.00663065,93740.0,93739.0,0.15752]
[1764815591924,0.00663065,93740.0,93739.0,0.16352]
[1764815592328,0.00663065,93740.0,93739.0,0.16452]
[1764815593034,0.00016005,93749.0,93748.0,0.15752]
[1764815593217,0.03016005,93749.0,93748.0,0.15752]
[1764815593727,0.03016005,93749.0,93748.0,0.168186]
[1764815594027,0.05,93759.0,93758.0,0.1681848]
[1764815594329,0.00026662,93766.0,93765.0,0.1681841]
[1764815594518,0.03026662,93766.0,93765.0,0.1681841]
[1764815595134,0.03026662,93766.0,93765.0,0.25459564]
[1764815595433,0.1620655,93752.0,93750.0,0.07570916]
[1764815595733,0.1514,93749.0,93748.0,0.007]
[1764815596035,0.1814,93749.0,93748.0,0.007]
[1764815596231,0.1514,93742.0,93741.0,0.24389596]
[1764815596532,0.22698,93742.0,93741.0,0.24389596]
[1764815596827,0.03,93742.0,93741.0,0.24389596]
[1764815597019,0.03,93742.0,93741.0,0.1681868]
[1764815597422,0.03,93742.0,93741.0,0.1741868]
[1764815598034,0.03,93742.0,93741.0,0.1681868]
[1764815598220,0.03,93742.0,93741.0,0.1761868]
[1764815598420,0.1514,93749.0,93748.0,0.0920659]
[1764815598724,0.03,93749.0,93748.0,0.1681859]
[1764815599726,0.033,93749.0,93748.0,0.1681859]
[1764815600331,0.033,93749.0,93748.0,0.1741859]
[1764815600526,0.003,93749.0,93748.0,0.1741859]
[1764815600829,0.003,93749.0,93748.0,0.1751859]
[1764815601034,0.033,93749.0,93748.0,0.1751859]
[1764815601333,0.03,93749.0,93748.0,0.1751859]
[1764815602732,0.1814,93749.0,93748.0,0.0186659]
[1764815603033,0.10809,93749.0,93748.0,0.1761859]
[1764815603235,0.10809,93749.0,93748.0,0.1751859]
[1764815603437,0.1814,93749.0,93748.0,0.1751859]
[1764815603633,0.03,93749.0,93748.0,0.1751859]
[1764815604431,0.00016005,93751.0,93750.0,0.19764]
[1764815604631,0.03016005,93751.0,93750.0,0.19764]
[1764815605740,0.18156005,93751.0,93750.0,0.0814]
[1764815605936,0.1514,93749.0,93748.0,0.1751859]
[1764815606137,0.1814,93749.0,93748.0,0.1751859]
[1764815606833,0.1814,93749.0,93748.0,0.1681859]
[1764815607539,0.1814,93749.0,93748.0,0.1751859]
[1764815609539,0.1814,93749.0,93748.0,0.1681859]
[1764815609733,0.1814,93749.0,93748.0,0.1741859]
[1764815611438,0.1824,93749.0,93748.0,0.0980659]
[1764815611638,0.1514,93743.0,93742.0,0.07570916]